bitfinex-derivatives/quotes_SOLF0:USTF0_20241226
["timestamp","ask_amount","ask_price","bid_price","bid_amount"]
[1735179782262,3.42,198.77,198.61,6.77544477]
[1735179782565,14.35193073,198.77,198.63,10.93193073]
[1735179782755,14.35193073,198.77,198.63,13.45143073]
[1735179782756,2.519,198.68,198.63,13.45143073]
[1735179783361,14.35193073,198.77,198.64,2.5194]
[1735179783858,14.35193073,198.77,198.63,10.93193073]
[1735179784059,2.519,198.68,198.63,10.93193073]
[1735179784563,14.35193073,198.77,198.63,10.93193073]
[1735179784564,2.5191,198.67,198.63,10.93193073]
[1735179786263,2.5195,198.64,198.58,2.5202]
[1735179786466,3.36,198.7,198.58,13.45213073]
[1735179786762,3.0949,198.69,198.58,13.45213073]
[1735179786965,2.5196,198.63,198.58,10.93193073]
[1735179787758,1.521,198.69,198.61,10.93193073]
[1735179787962,3.36,198.75,198.64,10.93193073]
[1735179788164,1.5277,198.74,198.64,10.93193073]
[1735179788359,3.103,198.74,198.64,10.93193073]
[1735179788571,2.5188,198.69,198.64,10.93193073]
[1735179788763,3.103,198.74,198.64,10.93193073]
[1735179789169,2.519,198.68,198.64,10.93193073]
[1735179792765,2.519,198.68,198.64,13.45133073]
[1735179794174,10.93193073,198.73,198.61,10.93193073]
[1735179794567,2.5188,198.7,198.63,2.5195]
[1735179794763,3.103,198.74,198.61,10.93193073]
[1735179794970,3.103,198.74,198.64,10.93193073]
[1735179796567,2.5186,198.71,198.67,2.519]
[1735179796769,1.5753,198.74,198.67,10.93193073]
[1735179796969,1.5719,198.76,198.67,10.93193073]
[1735179797169,1.611,198.81,198.7,10.93193073]
[1735179797568,1.611,198.81,198.7,14.31193073]
[1735179797873,2.5176,198.79,198.73,2.5183]
[1735179798069,1.611,198.81,198.7,14.31193073]
[1735179798274,1.611,198.81,198.67,10.93193073]
[1735179798476,2.5183,198.74,198.67,10.93193073]
[1735179799377,2.5178,198.77,198.72,2.5184]
[1735179799572,1.611,198.81,198.67,10.93193073]
[1735179800076,2.518,198.76,198.7,2.5186]
[1735179800878,2.518,198.76,198.71,2.5185]
[1735179801173,2.518,198.76,198.67,10.93193073]
[1735179801378,2.5178,198.78,198.7,10.93193073]
[1735179802479,2.5178,198.77,198.71,2.5185]
[1735179803480,2.518,198.76,198.71,2.5185]
[1735179804084,10.93193073,198.79,198.67,10.93193073]
[1735179804385,10.93193073,198.76,198.64,10.93193073]
[1735179804580,4.9787,198.75,198.64,10.93193073]
[1735179805488,2.5189,198.69,198.64,13.45133073]
[1735179806488,4.9787,198.75,198.64,10.93193073]
[1735179806689,2.5187,198.71,198.64,10.93193073]
[1735179806982,4.9787,198.75,198.64,10.93193073]
[1735179807388,2.5185,198.72,198.65,2.5193]
[1735179807684,4.9787,198.75,198.65,2.5193]
[1735179807888,4.9787,198.75,198.61,14.29193073]
[1735179808192,4.9787,198.75,198.63,2.5195]
[1735179808889,2.5191,198.67,198.61,10.93193073]
[1735179809189,4.9787,198.75,198.62,2.5197]
[1735179809391,4.9787,198.75,198.61,10.93193073]
[1735179809591,2.519,198.68,198.64,2.5195]
[1735179810290,2.519,198.68,198.63,2.5196]
[1735179812988,1.6187,198.75,198.64,10.93193073]
[1735179813291,3.38,198.8,198.68,10.93193073]
[1735179813482,2.5182,198.74,198.68,10.93193073]
[1735179813683,2.5182,198.74,198.69,2.5188]
[1735179814383,4.9704,198.8,198.68,10.93193073]
[1735179814593,4.9704,198.8,198.71,10.93193073]
[1735179816394,2.5177,198.78,198.73,2.5183]
[1735179816589,1.628,198.82,198.71,14.25193073]
[1735179817395,2.5176,198.79,198.74,2.5182]
[1735179819002,2.5176,198.79,198.74,13.45013073]
[1735179819805,3.32,198.86,198.74,10.93193073]
[1735179820402,2.5173,198.81,198.76,2.5178]
[1735179821107,2.5172,198.82,198.77,2.5178]
[1735179821301,4.8291,198.87,198.77,2.5178]
[1735179822100,2.5173,198.81,198.76,2.5179]
[1735179822501,4.8291,198.87,198.74,10.93193073]
[1735179822708,10.93193073,198.82,198.67,27.10177908]
[1735179822904,3.32,198.81,198.69,10.93193073]
[1735179824308,2.5179,198.76,198.71,2.5185]
[1735179825507,2.5179,198.76,198.69,10.93193073]
[1735179825702,2.5179,198.76,198.72,2.5184]
[1735179826102,3.32,198.81,198.72,2.5184]
[1735179826303,2.5178,198.77,198.72,2.5184]
[1735179826501,3.32,198.81,198.71,2.5186]
[1735179827902,2.5177,198.78,198.71,2.5186]
[1735179828099,3.32,198.81,198.71,2.5186]
[1735179829003,3.32,198.81,198.69,10.93193073]
[1735179829202,3.32,198.81,198.66,10.93193073]
[1735179829203,10.93193073,198.79,198.66,10.93193073]
[1735179829409,3.3028,198.78,198.66,10.93193073]
[1735179829805,3.3028,198.78,198.65,13.45123073]
[1735179830308,2.5187,198.71,198.65,13.45123073]
[1735179831107,2.5187,198.71,198.65,10.93193073]
[1735179831305,2.5187,198.71,198.66,2.5192]
[1735179832108,3.3028,198.78,198.65,10.93193073]
[1735179832400,10.93193073,198.76,198.61,10.93193073]
[1735179832606,10.93193073,198.73,198.61,10.93193073]
[1735179832805,1.5407,198.72,198.61,10.93193073]
[1735179833205,2.5196,198.64,198.61,10.93193073]
[1735179834611,2.519,198.68,198.62,2.5197]
[1735179834807,2.519,198.68,198.61,10.93193073]
[1735179835602,2.5191,198.67,198.61,13.45163073]
[1735179835804,2.5191,198.67,198.61,10.93193073]
[1735179837210,2.5191,198.67,198.62,2.5196]
[1735179838414,2.5191,198.67,198.61,10.93193073]
[1735179838611,2.5191,198.67,198.63,2.5196]
[1735179840003,1.5407,198.72,198.65,2.5192]
[1735179840208,3.32,198.75,198.64,10.93193073]
[1735179841011,3.32,198.75,198.64,14.25193073]
[1735179841711,1.4986,198.77,198.68,2.5189]
[1735179842209,2.5185,198.72,198.67,2.5191]
[1735179843913,2.5185,198.72,198.68,2.5189]
[1735179844114,2.5183,198.73,198.68,2.5189]
[1735179845316,2.5185,198.72,198.68,2.5189]
[1735179845516,2.5185,198.72,198.64,14.25193073]
[1735179845722,4.8186,198.77,198.64,14.25193073]
[1735179846127,10.93193073,198.76,198.64,10.93193073]
[1735179846614,2.5189,198.69,198.64,13.45133073]
[1735179847322,2.5191,198.67,198.63,2.5196]
[1735179847523,10.93193073,198.76,198.61,10.93193073]
[1735179847716,10.93193073,198.73,198.61,10.93193073]
[1735179849521,10.93193073,198.76,198.61,10.93193073]
[1735179849719,10.93193073,198.76,198.64,10.93193073]
[1735179850423,2.5183,198.73,198.68,2.5188]
[1735179850825,14.19193073,198.76,198.59,3.26]
[1735179851122,14.19193073,198.76,198.62,10.93193073]
[1735179851532,2.5189,198.69,198.64,2.5193]
[1735179851723,14.19193073,198.76,198.62,10.93193073]
[1735179851724,10.93193073,198.73,198.62,10.93193073]
[1735179852227,2.5193,198.65,198.61,9.53244625]
[1735179852725,2.5192,198.66,198.61,9.53244625]
[1735179854829,2.5191,198.67,198.61,9.53244625]
[1735179855027,7.01274625,198.69,198.61,9.53244625]
[1735179855331,2.5195,198.64,198.59,2.52]
[1735179855523,2.5195,198.64,198.62,7.01274625]
[1735179855732,3.2074,198.68,198.62,7.01274625]
[1735179856220,3.2074,198.68,198.64,7.01274625]
[1735179856427,2.5188,198.7,198.66,7.01274625]
[1735179856928,2.5188,198.7,198.66,9.53194625]
[1735179857130,2.5187,198.71,198.66,7.01274625]
[1735179858227,2.5187,198.71,198.64,10.95096205]
[1735179858421,6.4674,198.76,198.64,10.95096205]
[1735179859033,2.5188,198.69,198.64,10.95096205]
[1735179859433,6.4674,198.76,198.66,2.5192]
[1735179859633,2.5186,198.71,198.66,2.5192]
[1735179860228,2.5191,198.67,198.63,2.5196]
[1735179862439,2.5191,198.67,198.64,2.5195]
[1735179862737,10.95096205,198.75,198.64,2.5195]
[1735179862938,2.5189,198.69,198.64,2.5195]
[1735179864540,2.519,198.68,198.64,2.5195]
[1735179866442,10.95096205,198.72,198.57,41.31274113]
[1735179867039,2.5194,198.65,198.6,2.5199]
[1735179868037,2.5194,198.65,198.57,14.21096205]
[1735179868234,3.1729,198.68,198.57,14.21096205]
[1735179868435,2.5192,198.66,198.57,14.21096205]
[1735179868938,2.5192,198.66,198.61,2.5197]
[1735179869336,5.692,198.68,198.63,2.5195]
[1735179869536,5.692,198.68,198.57,14.21096205]
[1735179869936,3.1729,198.68,198.63,2.5195]
[1735179870135,2.5191,198.67,198.63,2.5195]
[1735179872235,5.6919,198.68,198.64,2.5194]
[1735179872636,3.1729,198.68,198.6,10.95096205]
[1735179872837,2.5192,198.67,198.6,10.95096205]
[1735179873639,2.5192,198.67,198.63,2.5196]
[1735179874035,3.1729,198.68,198.63,2.5196]
[1735179874237,2.5194,198.65,198.58,3.26]
[1735179875046,3.1729,198.68,198.61,2.5197]
[1735179875241,2.5195,198.64,198.61,2.5197]
[1735179876344,3.1729,198.68,198.61,2.5197]
[1735179876542,3.1729,198.68,198.64,2.5194]
[1735179876736,14.15096205,198.75,198.62,10.95096205]
[1735179877141,2.5187,198.71,198.67,2.5191]
[1735179878244,2.5187,198.7,198.66,2.5192]
[1735179883549,9.52949575,198.71,198.67,2.519]
[1735179885146,2.5182,198.74,198.71,2.5186]
[1735179885366,4.7117,198.76,198.7,7.01089575]
[1735179886249,3.1245,198.76,198.7,7.01089575]
[1735179886545,3.0915,198.82,198.78,2.5176]
[1735179886745,10.10239575,198.82,198.76,7.01089575]
[1735179888048,3.0915,198.82,198.79,2.5175]
[1735179888243,1.5244,198.82,198.79,2.5175]
[1735179888965,1.5244,198.82,198.8,2.5174]
[1735179889642,7.01089575,198.84,198.8,2.5174]
[1735179891751,1.6371,198.87,198.7,3.2]
[1735179891752,7.01089575,198.82,198.77,9.52859575]
[1735179892151,7.01089575,198.82,198.77,7.01089575]
[1735179892455,9.52809575,198.82,198.78,2.5177]
[1735179899262,7.01089575,198.82,198.78,2.5177]
[1735179899453,9.52789575,198.84,198.79,2.5174]
[1735179901663,9.52789575,198.84,198.79,7.01089575]
[1735179901861,2.5171,198.83,198.77,7.01089575]
[1735179904262,2.5171,198.83,198.79,2.5175]
[1735179904762,1.6371,198.87,198.79,7.01089575]
[1735179904971,7.01089575,198.86,198.82,2.5171]
[1735179905163,7.01089575,198.86,198.81,7.01089575]
[1735179906462,7.01089575,198.86,198.81,9.52819575]
[1735179907564,2.5168,198.85,198.81,9.52819575]
[1735179909064,7.01089575,198.86,198.74,3.2]
[1735179909268,2.5172,198.83,198.78,9.52849575]
[1735179910865,7.01089575,198.84,198.74,3.2]
[1735179911062,7.01089575,198.82,198.76,9.52879575]
[1735179912571,2.5175,198.8,198.76,9.52879575]
[1735179915474,7.01089575,198.82,198.76,7.01089575]
[1735179915674,1.6371,198.87,198.78,7.01089575]
[1735179915675,7.01089575,198.84,198.78,7.01089575]
[1735179916670,7.01089575,198.86,198.8,7.01089575]
[1735179917976,2.517,198.84,198.8,9.52829575]
[1735179919471,7.01089575,198.86,198.8,7.01089575]
[1735179919679,2.5173,198.82,198.78,9.52849575]
[1735179920378,7.01089575,198.84,198.78,7.01089575]
[1735179921079,2.5173,198.82,198.78,7.01089575]
[1735179921278,7.01089575,198.84,198.78,7.01089575]
[1735179921577,2.5172,198.83,198.78,7.01089575]
[1735179921779,7.01089575,198.86,198.78,7.01089575]
[1735179921981,1.6371,198.87,198.81,2.5173]
[1735179922172,7.01089575,198.86,198.81,2.5173]
[1735179922373,1.5684,198.88,198.84,7.01089575]
[1735179922677,1.5684,198.88,198.79,3.2]
[1735179922678,7.01089575,198.92,198.86,7.01089575]
[1735179923478,2.5162,198.9,198.86,7.01089575]
[1735179923679,56.0628261,198.94,198.88,7.01089575]
[1735179923877,56.0628261,198.94,198.93,7.01089575]
[1735179924081,1.81264772,198.97,198.93,7.01089575]
[1735179924278,1.81264772,198.97,198.85,3.2]
[1735179924279,8.82354347,198.97,198.91,7.01089575]
[1735179924978,7.01089575,198.95,198.89,7.01089575]
[1735179925373,3.2541,198.94,198.8,6.885503]
[1735179925581,2.5163,198.9,198.87,7.01089575]
[1735179929484,7.01089575,198.93,198.85,7.01089575]
[1735179929785,8.54239575,198.93,198.85,7.01089575]
[1735179930383,2.5165,198.88,198.85,7.01089575]
[1735179935992,7.01089575,198.89,198.82,7.01089575]
[1735179936489,2.5166,198.87,198.82,7.01089575]
[1735179936789,8.54239575,198.93,198.86,7.01089575]
[1735179937181,8.54239575,198.93,198.88,7.01089575]
[1735179937182,1.5315,198.93,198.88,7.01089575]
[1735179938492,2.5162,198.9,198.88,7.01089575]
[1735179939388,1.5315,198.93,198.75,27.54201201]
[1735179939389,2.5165,198.88,198.85,7.01089575]
[1735179940093,2.5163,198.89,198.85,7.01089575]
[1735179940793,2.5163,198.89,198.87,7.01089575]
[1735179941797,3.2541,198.94,198.87,7.01089575]
[1735179941994,3.2541,198.94,198.9,7.01089575]
[1735179942297,2.5155,198.95,198.9,7.01089575]
[1735179943496,2.5155,198.95,198.91,2.5159]
[1735179944795,2.5157,198.94,198.91,2.5159]
[1735179947196,7.01089575,198.95,198.88,7.01089575]
[1735179947791,7.01089575,198.93,198.88,7.01089575]
[1735179948395,7.01089575,198.93,198.86,7.01089575]
[1735179948996,7.01089575,198.93,198.83,3.2]
[1735179949195,7.01089575,198.93,198.86,9.52759575]
[1735179949904,2.5163,198.9,198.86,9.52759575]
[1735179954507,2.5159,198.93,198.88,7.01089575]
[1735179954806,7.01089575,198.96,198.9,7.01089575]
[1735179955003,2.5156,198.95,198.9,9.52699575]
[1735179955806,2.5157,198.94,198.9,9.52699575]
[1735179956700,7.01089575,198.96,198.9,9.52699575]
[1735179956701,2.5158,198.93,198.9,7.01089575]
[1735179956902,7.01089575,198.96,198.83,3.2]
[1735179957103,3.2,198.98,198.9,7.01089575]
[1735179957305,7.01089575,198.97,198.9,7.01089575]
[1735179958308,2.5158,198.93,198.9,7.01089575]
[1735179958904,2.5158,198.93,198.89,9.52719575]
[1735179959305,3.2,198.98,198.87,2.5165]
[1735179959306,2.5162,198.91,198.87,2.5165]
[1735179959501,7.01089575,198.89,198.8,6.885503]
[1735179959805,7.01089575,198.87,198.81,7.01089575]
[1735179960003,7.01089575,198.83,198.8,6.885503]
[1735179960404,2.5175,198.8,198.77,7.01089575]
[1735179960607,3.2,198.85,198.79,7.01089575]
[1735179960815,3.2,198.85,198.75,27.54201201]
[1735179960816,7.01089575,198.84,198.77,7.01089575]
[1735179961109,7.01089575,198.84,198.77,9.52869575]
[1735179961601,2.517,198.84,198.77,7.01089575]
[1735179961804,7.01089575,198.88,198.81,9.52819575]
[1735179962308,7.01089575,198.88,198.71,50.16904139]
[1735179962500,7.01089575,198.86,198.8,7.01089575]
[1735179963500,2.517,198.84,198.8,7.01089575]
[1735179963913,2.5175,198.8,198.74,5.7182]
[1735179964115,10.21089575,198.84,198.77,7.01089575]
[1735179964313,3.2,198.84,198.79,7.01089575]
[1735179964810,2.5173,198.81,198.77,7.01089575]
[1735179965310,5.717,198.84,198.79,7.01089575]
[1735179965507,3.2,198.84,198.79,7.01089575]
[1735179965910,7.01089575,198.87,198.79,7.01089575]
[1735179966607,7.01089575,198.85,198.79,7.01089575]
[1735179967008,2.5168,198.86,198.79,7.01089575]
[1735179967201,7.01089575,198.87,198.79,7.01089575]
[1735179967602,4.7038,198.9,198.83,7.01089575]
[1735179967808,3.1752,198.9,198.85,7.01089575]
[1735179968908,2.5164,198.88,198.85,7.01089575]
[1735179969114,7.01089575,198.89,198.78,3.2]
[1735179969314,7.01089575,198.89,198.81,7.01089575]
[1735179969516,7.01089575,198.87,198.8,7.01089575]
[1735179969713,7.01089575,198.87,198.78,7.01089575]
[1735179969910,2.5173,198.82,198.78,7.01089575]
[1735179970212,7.01089575,198.83,198.71,57.05454439]
[1735179970414,7.01089575,198.83,198.74,7.01089575]
[1735179970610,2.5178,198.78,198.74,7.01089575]
[1735179971015,3.2084,198.82,198.78,2.5177]
[1735179971217,1.5232,198.86,198.8,7.01089575]
[1735179971512,3.2,198.87,198.82,7.01089575]
[1735179972618,10.21089575,198.87,198.79,7.01089575]
[1735179973219,11.04297177,198.96,198.85,7.01089575]
[1735179973514,2.5157,198.94,198.9,7.01089575]
[1735179974112,2.5157,198.94,198.89,2.5162]
[1735179974307,2.5157,198.94,198.87,10.92702773]
[1735179974711,2.5158,198.93,198.87,2.5165]
[1735179975114,1.5671,198.96,198.85,10.92702773]
[1735179975320,1.5671,198.96,198.86,2.5167]
[1735179975722,2.5158,198.93,198.87,2.5164]
[1735179976424,2.5159,198.92,198.87,2.5164]
[1735179976625,1.5671,198.96,198.87,2.5164]
[1735179976825,2.5158,198.93,198.87,2.5164]
[1735179977226,2.5158,198.93,198.88,2.5164]
[1735179977822,1.5671,198.96,198.85,10.92702773]
[1735179979427,2.5157,198.94,198.89,2.5163]
[1735179980024,2.5157,198.94,198.88,10.92702773]
[1735179980232,2.5157,198.94,198.9,2.5162]
[1735179982131,2.5157,198.94,198.89,2.5163]
[1735179983034,1.5671,198.96,198.89,2.5163]
[1735179983431,1.5671,198.96,198.88,10.92702773]
[1735179983630,2.5163,198.89,198.83,10.92702773]
[1735179984431,2.5169,198.85,198.77,3.2]
[1735179984729,2.5169,198.85,198.78,10.92702773]
[1735179984934,10.92702773,198.91,198.78,10.92702773]
[1735179985135,2.5165,198.88,198.79,2.5175]
[1735179985337,10.92702773,198.85,198.75,27.54201201]
[1735179985539,3.2,198.84,198.7,17.81253073]
[1735179985725,10.92702773,198.82,198.7,17.81253073]
[1735179986135,3.2,198.84,198.7,17.81253073]
[1735179986436,3.1591,198.87,198.73,10.92702773]
[1735179987139,3.1591,198.87,198.76,10.92702773]
[1735179987735,2.5168,198.86,198.76,10.92702773]
[1735179988229,2.5168,198.86,198.79,2.5174]
[1735179988424,2.5168,198.86,198.76,10.92702773]
[1735179988629,1.5194,198.87,198.79,10.92702773]
[1735179988826,3.2,198.92,198.84,2.5168]
[1735179989033,3.2,198.92,198.82,10.92702773]
[1735179989635,3.2,198.92,198.85,2.5167]
[1735179990453,2.5162,198.91,198.85,2.5167]
[1735179990737,3.2,198.92,198.85,2.5167]
[1735179990940,3.2,198.92,198.75,3.2]
[1735179991131,3.2,198.92,198.8,10.92702773]
[1735179992231,10.92702773,198.94,198.8,10.92702773]
[1735179992435,2.5161,198.91,198.85,2.5167]
[1735179993732,3.2,198.93,198.81,3.2]
[1735179993941,3.2,198.93,198.83,2.517]
[1735179994437,2.5164,198.89,198.83,2.517]
[1735179994637,2.5164,198.89,198.84,2.5169]
[1735179997836,10.92702773,198.94,198.81,3.2]
[1735179997837,1.5678,198.96,198.87,10.92702773]
[1735179998140,1.5678,198.96,198.88,3.2]
[1735179998339,2.5157,198.94,198.9,2.5162]
[1735179998539,1.5678,198.96,198.88,3.2]
[1735179999538,2.5155,198.95,198.88,3.2]
[1735180000441,2.5155,198.95,198.9,2.5162]
[1735180001142,2.5151,198.99,198.93,2.5158]
[1735180001440,1.5764,199.01,198.93,2.5158]
[1735180001641,3.1216,199.01,198.9,10.92702773]
[1735180001838,2.5151,198.99,198.94,2.5157]
[1735180005543,2.5151,198.99,198.95,2.5155]
[1735180006549,2.5151,198.99,198.93,13.44272773]
[1735180008247,2.5151,198.99,198.94,2.5157]
[1735180009651,3.1216,199.01,198.94,2.5157]
[1735180009950,2.5151,198.99,198.94,2.5157]
[1735180010147,10.11205024,199.01,198.95,6.99045024]
[1735180011347,2.515,199.0,198.95,9.50595024]
[1735180011743,2.515,199.0,198.95,6.99045024]
[1735180012444,2.515,199.0,198.96,2.5154]
[1735180012649,2.515,199.0,198.97,6.99045024]
[1735180019459,2.515,199.0,198.96,2.5154]
[1735180019660,2.515,199.0,198.96,9.50585024]
[1735180020659,6.99045024,198.98,198.91,6.99045024]
[1735180021162,2.5158,198.93,198.91,6.99045024]
[1735180021558,2.5159,198.92,198.87,5.6965]
[1735180021859,6.99045024,198.94,198.87,6.99045024]
[1735180022560,6.99045024,198.92,198.87,6.99045024]
[1735180022855,6.99045024,198.92,198.76,6.885503]
[1735180023062,6.99045024,198.92,198.86,6.99045024]
[1735180024063,2.5163,198.89,198.86,6.99045024]
[1735180024255,6.99045024,198.92,198.86,6.99045024]
[1735180024462,6.99045024,198.9,198.83,6.99045024]
[1735180024660,6.99045024,198.88,198.8,6.99045024]
[1735180026064,2.5171,198.83,198.8,6.99045024]
[1735180026254,2.5171,198.83,198.77,13.45580948]
[1735180026763,2.5169,198.85,198.79,2.5175]
[1735180026957,3.18,198.9,198.8,10.93800948]
[1735180027759,3.18,198.9,198.82,2.5172]
[1735180028357,1.6374,198.91,198.8,10.93800948]
[1735180028561,1.6374,198.91,198.83,10.93800948]
[1735180029563,1.6374,198.91,198.83,13.45500948]
[1735180030463,2.5165,198.88,198.83,13.45500948]
[1735180030859,1.6374,198.91,198.83,10.93800948]
[1735180031064,2.5163,198.89,198.84,2.5169]
[1735180033762,1.6374,198.91,198.83,10.93800948]
[1735180033956,2.5164,198.88,198.83,10.93800948]
[1735180035363,1.6374,198.91,198.8,10.93800948]
[1735180035555,2.5166,198.87,198.82,2.5172]
[1735180035759,1.6374,198.91,198.8,10.93800948]
[1735180035962,12.57540948,198.91,198.8,10.93800948]
[1735180036362,12.57540948,198.91,198.8,13.45530948]
[1735180036558,10.93800948,198.88,198.73,14.11800948]
[1735180036758,14.11800948,198.88,198.73,14.11800948]
[1735180037364,14.11800948,198.88,198.73,10.93800948]
[1735180037765,14.11800948,198.88,198.76,2.5179]
[1735180038462,2.517,198.84,198.76,2.5179]
[1735180038666,3.1842,198.83,198.76,2.5179]
[1735180039565,3.18,198.88,198.76,10.93800948]
[1735180039959,3.18,198.88,198.79,10.93800948]
[1735180040158,3.0425,198.9,198.79,10.93800948]
[1735180040862,3.0425,198.9,198.8,2.5174]
[1735180041169,3.0425,198.9,198.82,10.93800948]
[1735180041361,2.5166,198.87,198.82,10.93800948]
[1735180042571,2.5166,198.87,198.82,13.45520948]
[1735180043459,2.517,198.84,198.78,2.5176]
[1735180043665,3.0425,198.9,198.78,2.5176]
[1735180044162,3.0425,198.9,198.77,10.93800948]
[1735180044368,3.0425,198.9,198.79,2.5176]
[1735180044780,2.5171,198.83,198.79,2.5176]
[1735180045160,2.5171,198.83,198.79,2.5175]
[1735180045767,3.0425,198.9,198.77,10.93800948]
[1735180045963,2.5168,198.85,198.77,10.93800948]
[1735180046274,3.0425,198.9,198.8,10.93800948]
[1735180047063,2.5166,198.87,198.8,10.93800948]
[1735180047974,3.0425,198.9,198.8,10.93800948]
[1735180048171,2.5163,198.89,198.84,2.5168]
[1735180048770,2.5164,198.88,198.84,2.5168]
[1735180050573,2.5163,198.89,198.85,2.5168]
[1735180051164,2.5164,198.88,198.84,2.5169]
[1735180052772,2.5163,198.9,198.85,2.5167]
[1735180054576,2.5163,198.89,198.85,2.5167]
[1735180058176,2.5163,198.89,198.85,9.51371363]
[1735180063079,2.5163,198.89,198.85,2.5167]
[1735180063776,6.99701363,198.88,198.74,27.54201201]
[1735180064080,6.99701363,198.84,198.74,27.54201201]
[1735180064280,6.99701363,198.82,198.75,6.99701363]
[1735180064579,3.18,198.85,198.77,6.99701363]
[1735180064781,10.17701363,198.85,198.77,6.99701363]
[1735180065280,2.5173,198.81,198.77,9.51481363]
[1735180065683,2.5172,198.82,198.78,2.5177]
[1735180066584,2.517,198.84,198.75,10.94092866]
[1735180068484,2.517,198.84,198.79,2.5175]
[1735180069286,3.18,198.87,198.75,10.94092866]
[1735180070077,2.517,198.84,198.75,13.45892866]
[1735180070280,3.18,198.87,198.75,13.45892866]
[1735180070984,2.5176,198.79,198.75,13.45892866]
[1735180072387,3.18,198.87,198.75,10.94092866]
[1735180074581,2.5172,198.83,198.79,2.5175]
[1735180075287,3.18,198.87,198.75,10.94092866]
[1735180075884,2.5175,198.8,198.76,2.5179]
[1735180078388,2.5175,198.8,198.77,2.5178]
[1735180078684,2.5173,198.81,198.77,2.5178]
[1735180079487,1.5333,198.88,198.79,10.94092866]
[1735180080689,2.5168,198.86,198.79,10.94092866]
[1735180081085,2.5168,198.86,198.82,2.5172]
[1735180083589,2.517,198.84,198.8,2.5173]
[1735180085785,10.94092866,198.86,198.69,6.885503]
[1735180085986,10.94092866,198.86,198.72,10.94092866]
[1735180086287,7.00433466,198.82,198.75,7.00433466]
[1735180086489,2.5177,198.79,198.75,9.52243466]
[1735180088190,2.5177,198.79,198.75,2.5181]
[1735180088392,10.94336243,198.85,198.73,10.94336243]
[1735180088591,10.94336243,198.85,198.74,2.5181]
[1735180089791,10.94336243,198.85,198.73,13.46166243]
[1735180089992,2.5178,198.77,198.73,13.46166243]
[1735180092593,2.5178,198.77,198.74,2.5182]
[1735180092789,3.3008,198.8,198.73,10.94336243]
[1735180093399,3.3008,198.8,198.64,27.54201201]
[1735180093596,12.58196243,198.79,198.64,38.48537444]
[1735180093793,12.58196243,198.79,198.66,6.885503]
[1735180093993,3.3008,198.8,198.67,10.94336243]
[1735180094299,3.3008,198.8,198.71,10.94336243]
[1735180094700,3.3008,198.8,198.74,10.94336243]
[1735180095095,3.18,198.85,198.74,10.94336243]
[1735180096501,2.5173,198.82,198.77,2.5177]
[1735180097302,2.5174,198.81,198.76,2.5179]
[1735180101011,2.5169,198.84,198.79,2.5175]
[1735180101606,2.5169,198.84,198.74,10.94336243]
[1735180101802,2.5169,198.84,198.8,2.5174]
[1735180102708,5.6968,198.86,198.82,2.5171]
[1735180102905,56.0628261,198.94,198.8,10.94336243]
[1735180103107,3.1927,198.93,198.8,10.94336243]
[1735180104112,2.5161,198.91,198.83,2.5169]
[1735180104306,3.1927,198.93,198.83,14.12336243]
[1735180104509,1.6432,198.93,198.86,10.94336243]
[1735180104713,1.6432,198.93,198.88,2.5164]
[1735180106610,1.6432,198.93,198.89,2.5163]
[1735180110515,2.5159,198.92,198.87,2.5165]
[1735180110719,8.63807833,198.93,198.84,3.18]
[1735180110916,8.63807833,198.93,198.85,6.99487833]
[1735180112515,2.5162,198.9,198.86,2.5167]
[1735180116519,1.6432,198.93,198.87,6.99487833]
[1735180116719,6.99487833,198.94,198.87,6.99487833]
[1735180116919,6.99487833,198.97,198.89,6.99487833]
[1735180117120,2.5155,198.96,198.91,2.516]
[1735180123525,1.6039,199.01,198.91,6.99487833]
[1735180123723,2.5152,198.98,198.91,6.99487833]
[1735180124426,2.5152,198.98,198.93,2.5157]
[1735180128926,2.5152,198.98,198.91,6.99487833]
[1735180129232,2.515,198.99,198.93,6.99487833]
[1735180130132,2.5152,198.98,198.95,2.5155]